[Event "Late-Titled-Tuesday-Blitz-April-23-2024"]
[Site "Chess.com"]
[Date "2024.04.23"]
[Round "1"]
[White "rynos0411"]
[Black "BogdanDeac"]
[Result "0-1"]
[WhiteElo "2530"]
[BlackElo "3050"]
[TimeControl "180+1"]
[EndTime "14:07:42 PDT"]
[Termination "BogdanDeac won by resignation"]

1. e4 {[%clk 0:03:00.9]} 1... c5 {[%clk 0:02:59.4]} 2. Nf3 {[%clk 0:03:00.7]}
2... e6 {[%clk 0:02:56.3]} 3. d4 {[%clk 0:03:00]} 3... cxd4 {[%clk 0:02:52.9]}
4. Nxd4 {[%clk 0:03:00.9]} 4... a6 {[%clk 0:02:53.1]} 5. Nc3 {[%clk 0:02:54.2]}
5... Qc7 {[%clk 0:02:47.9]} 6. g3 {[%clk 0:02:52.5]} 6... b5 {[%clk 0:02:41.3]}
7. Bg2 {[%clk 0:02:52.4]} 7... Bb7 {[%clk 0:02:41.5]} 8. O-O {[%clk 0:02:51]}
8... Nc6 {[%clk 0:02:39.8]} 9. a3 {[%clk 0:02:45.3]} 9... Nxd4 {[%clk
0:02:15.3]} 10. Qxd4 {[%clk 0:02:46.2]} 10... Qc5 {[%clk 0:02:15.6]} 11. Be3
{[%clk 0:02:40.5]} 11... Qxd4 {[%clk 0:02:14.7]} 12. Bxd4 {[%clk 0:02:40.8]}
12... Ne7 {[%clk 0:02:15.1]} 13. Bc5 {[%clk 0:02:24.2]} 13... Rc8 {[%clk
0:02:07.5]} 14. Bb4 {[%clk 0:02:23.7]} 14... Nc6 {[%clk 0:02:01.1]} 15. Bxf8
{[%clk 0:02:23.4]} 15... Rxf8 {[%clk 0:02:01.5]} 16. Rad1 {[%clk 0:02:23.7]}
16... Ne5 {[%clk 0:01:58.8]} 17. Rd4 {[%clk 0:02:07.6]} 17... Nc4 {[%clk
0:01:56.9]} 18. Nd1 {[%clk 0:02:07.4]} 18... Ke7 {[%clk 0:01:52]} 19. f4 {[%clk
0:01:47.7]} 19... f6 {[%clk 0:01:51.4]} 20. Bh3 {[%clk 0:01:31.5]} 20... Rfd8
{[%clk 0:01:40.5]} 21. Re1 {[%clk 0:01:26.9]} 21... Rc5 {[%clk 0:01:32.5]} 22.
Bg2 {[%clk 0:01:19.2]} 22... Rdc8 {[%clk 0:01:15.1]} 23. c3 {[%clk 0:01:12.7]}
23... a5 {[%clk 0:01:13.9]} 24. Re2 {[%clk 0:01:12.1]} 24... e5 {[%clk 0:00:48]}
25. Rd3 {[%clk 0:01:07.4]} 25... Ba6 {[%clk 0:00:33.6]} 26. Rd5 {[%clk
0:01:03.5]} 26... Rxd5 {[%clk 0:00:30.2]} 27. exd5 {[%clk 0:01:03.6]} 27... d6
{[%clk 0:00:30.8]} 28. Nf2 {[%clk 0:00:58.6]} 28... Nb6 {[%clk 0:00:23.1]} 29.
Rd2 {[%clk 0:00:53.6]} 29... b4 {[%clk 0:00:19.5]} 30. axb4 {[%clk 0:00:53.5]}
30... axb4 {[%clk 0:00:19.5]} 31. Nd1 {[%clk 0:00:39.6]} 31... Nc4 {[%clk
0:00:14.1]} 32. Rf2 {[%clk 0:00:38.5]} 32... bxc3 {[%clk 0:00:13.6]} 33. Nxc3
{[%clk 0:00:36.7]} 33... Nxb2 {[%clk 0:00:09.9]} 34. Rxb2 {[%clk 0:00:28.5]}
34... Rxc3 {[%clk 0:00:09.9]} 35. fxe5 {[%clk 0:00:28.8]} 35... fxe5 {[%clk
0:00:08.9]} 36. Ra2 {[%clk 0:00:28.7]} 36... Bc8 {[%clk 0:00:06.1]} 37. Ra7+
{[%clk 0:00:28.2]} 37... Kf6 {[%clk 0:00:06.4]} 38. Be4 {[%clk 0:00:25.9]} 38...
Rc1+ {[%clk 0:00:05.6]} 39. Kg2 {[%clk 0:00:25.6]} 39... h5 {[%clk 0:00:05.9]}
40. h3 {[%clk 0:00:20.4]} 40... Rc4 {[%clk 0:00:05.7]} 41. Bf3 {[%clk
0:00:20.2]} 41... e4 {[%clk 0:00:05.3]} 42. Bxh5 {[%clk 0:00:20.3]} 42... g6
{[%clk 0:00:05.9]} 43. Be2 {[%clk 0:00:19.9]} 43... Rc2 {[%clk 0:00:06.1]} 44.
Kf2 {[%clk 0:00:20.4]} 44... Bxh3 {[%clk 0:00:05.9]} 45. Ra6 {[%clk 0:00:19.2]}
45... Ke5 {[%clk 0:00:06]} 46. Ke3 {[%clk 0:00:15.9]} 46... Rc3+ {[%clk
0:00:06.3]} 47. Kf2 {[%clk 0:00:16.1]} 47... Kxd5 {[%clk 0:00:05.9]} 48. Ra5+
{[%clk 0:00:16.7]} 48... Kd4 {[%clk 0:00:06.1]} 49. Rg5 {[%clk 0:00:17.6]} 49...
Rc2 {[%clk 0:00:06.2]} 50. Rxg6 {[%clk 0:00:17.1]} 50... d5 {[%clk 0:00:06.6]}
51. Ra6 {[%clk 0:00:15.2]} 51... Bg4 {[%clk 0:00:06.4]} 52. Ra4+ {[%clk
0:00:14.7]} 52... Ke5 {[%clk 0:00:06.8]} 0-1

[Event "Late-Titled-Tuesday-Blitz-April-23-2024"]
[Site "Chess.com"]
[Date "2024.04.23"]
[Round "1"]
[White "LUISMIGUELOV"]
[Black "MKlose11"]
[Result "0-1"]
[WhiteElo "2204"]
[BlackElo "2600"]
[TimeControl "180+1"]
[EndTime "14:07:42 PDT"]
[Termination "MKlose11 won by resignation"]

1. d4 {[%clk 0:03:00.9]} 1... Nf6 {[%clk 0:02:56.4]} 2. c3 {[%clk 0:03:00.5]}
2... g6 {[%clk 0:02:57.3]} 3. Bg5 {[%clk 0:03:00.1]} 3... Bg7 {[%clk 0:02:55.2]}
4. Nd2 {[%clk 0:02:59.7]} 4... c5 {[%clk 0:02:55]} 5. e3 {[%clk 0:02:59.3]} 5...
b6 {[%clk 0:02:54.4]} 6. Bd3 {[%clk 0:02:58.1]} 6... O-O {[%clk 0:02:54.5]} 7.
Qe2 {[%clk 0:02:56.8]} 7... Bb7 {[%clk 0:02:51.6]} 8. Ngf3 {[%clk 0:02:56.5]}
8... d5 {[%clk 0:02:49.1]} 9. O-O {[%clk 0:02:54.8]} 9... Ne4 {[%clk 0:02:49.2]}
10. h4 {[%clk 0:02:51.5]} 10... Nd7 {[%clk 0:02:48.8]} 11. h5 {[%clk 0:02:46.5]}
11... b5 {[%clk 0:02:43.3]} 12. hxg6 {[%clk 0:02:45.5]} 12... hxg6 {[%clk
0:02:44.2]} 13. dxc5 {[%clk 0:02:41.1]} 13... a6 {[%clk 0:02:35.6]} 14. Bxe4
{[%clk 0:02:02.1]} 14... dxe4 {[%clk 0:02:34]} 15. Nd4 {[%clk 0:02:02.5]} 15...
Nxc5 {[%clk 0:02:33.4]} 16. a4 {[%clk 0:01:53.7]} 16... Nxa4 {[%clk 0:02:29.7]}
17. N2b3 {[%clk 0:01:50]} 17... Re8 {[%clk 0:02:22.3]} 18. Na5 {[%clk
0:01:48.7]} 18... Qd5 {[%clk 0:02:11.9]} 19. Nxb7 {[%clk 0:01:46.5]} 19... Qxg5
{[%clk 0:02:06.3]} 20. Na5 {[%clk 0:01:41.6]} 20... Nc5 {[%clk 0:02:03.5]} 21.
b4 {[%clk 0:01:35.1]} 21... Nd3 {[%clk 0:02:00.6]} 22. f4 {[%clk 0:01:29.8]}
22... Qd5 {[%clk 0:01:31.6]} 23. Nac6 {[%clk 0:01:26.3]} 23... Bf6 {[%clk
0:01:12.3]} 24. f5 {[%clk 0:01:24.8]} 24... Rec8 {[%clk 0:01:09.1]} 25. fxg6
{[%clk 0:01:20.3]} 25... Rxc6 {[%clk 0:01:00.6]} 26. gxf7+ {[%clk 0:01:19.2]}
26... Kf8 {[%clk 0:00:54.9]} 27. Nxc6 {[%clk 0:01:15.8]} 27... Qxc6 {[%clk
0:00:55.8]} 28. Qh5 {[%clk 0:01:10.7]} 28... Ne5 {[%clk 0:00:45.2]} 29. Rf5
{[%clk 0:00:59.7]} 29... Nxf7 {[%clk 0:00:42.9]} 30. Raf1 {[%clk 0:00:59]} 30...
Qxc3 {[%clk 0:00:41.3]} 31. Rxf6 {[%clk 0:00:54.9]} 31... exf6 {[%clk 0:00:40]}
32. Qd5 {[%clk 0:00:48.1]} 32... Qxe3+ {[%clk 0:00:36.7]} 33. Kh1 {[%clk
0:00:47.6]} 33... Rd8 {[%clk 0:00:34]} 34. Qe6 {[%clk 0:00:40.8]} 34... Qh6+
{[%clk 0:00:30]} 35. Kg1 {[%clk 0:00:39.9]} 35... Kg7 {[%clk 0:00:25.4]} 36.
Qxe4 {[%clk 0:00:38.6]} 36... Rh8 {[%clk 0:00:22.1]} 37. Qg4+ {[%clk 0:00:32.6]}
37... Qg5 {[%clk 0:00:21.7]} 38. Qd7 {[%clk 0:00:29.6]} 38... Qe3+ {[%clk
0:00:21.1]} 39. Rf2 {[%clk 0:00:27.9]} 39... Qe1+ {[%clk 0:00:17.2]} 40. Rf1
{[%clk 0:00:26.7]} 40... Rh1+ {[%clk 0:00:16.7]} 41. Kxh1 {[%clk 0:00:26.8]}
41... Qxf1+ {[%clk 0:00:17.6]} 42. Kh2 {[%clk 0:00:27.3]} 42... Qf4+ {[%clk
0:00:17.7]} 43. Kh1 {[%clk 0:00:26.6]} 43... Qxb4 {[%clk 0:00:18.6]} 44. Qb7
{[%clk 0:00:24.2]} 44... a5 {[%clk 0:00:18.2]} 45. Qc6 {[%clk 0:00:23.3]} 45...
a4 {[%clk 0:00:18]} 46. Qf3 {[%clk 0:00:21.3]} 46... Qb1+ {[%clk 0:00:17.7]} 47.
Kh2 {[%clk 0:00:20.4]} 47... b4 {[%clk 0:00:18.4]} 48. Qg3+ {[%clk 0:00:19.8]}
48... Ng5 {[%clk 0:00:17.9]} 49. Qc7+ {[%clk 0:00:19]} 49... Kg6 {[%clk
0:00:18.4]} 50. Qc4 {[%clk 0:00:14.1]} 50... Qb3 {[%clk 0:00:15.2]} 51. Qd4
{[%clk 0:00:12.4]} 51... a3 {[%clk 0:00:15.3]} 52. Qd3+ {[%clk 0:00:11.8]} 52...
Qxd3 {[%clk 0:00:14.9]} 0-1

[Event "Late-Titled-Tuesday-Blitz-April-23-2024"]
[Site "Chess.com"]
[Date "2024.04.23"]
[Round "1"]
[White "Brahianzevich"]
[Black "Byniolus"]
[Result "0-1"]
[WhiteElo "2457"]
[BlackElo "2800"]
[TimeControl "180+1"]
[EndTime "14:07:43 PDT"]
[Termination "Byniolus won by checkmate"]

1. e4 {[%clk 0:02:58.6]} 1... d6 {[%clk 0:02:59.6]} 2. d4 {[%clk 0:02:58.3]}
2... Nf6 {[%clk 0:03:00]} 3. Nd2 {[%clk 0:02:59]} 3... e5 {[%clk 0:02:58.9]} 4.
dxe5 {[%clk 0:02:58.9]} 4... dxe5 {[%clk 0:02:59.8]} 5. Ngf3 {[%clk 0:02:59.5]}
5... Nbd7 {[%clk 0:02:58.3]} 6. Bc4 {[%clk 0:03:00.2]} 6... Be7 {[%clk
0:02:54.3]} 7. O-O {[%clk 0:02:56.4]} 7... O-O {[%clk 0:02:54.2]} 8. Re1 {[%clk
0:02:54.3]} 8... h6 {[%clk 0:02:51.6]} 9. Nf1 {[%clk 0:02:52.2]} 9... c6 {[%clk
0:02:42.9]} 10. a4 {[%clk 0:02:50.9]} 10... Qc7 {[%clk 0:02:38]} 11. Ng3 {[%clk
0:02:50.3]} 11... Nc5 {[%clk 0:02:34.6]} 12. Nh4 {[%clk 0:02:19.5]} 12... Bg4
{[%clk 0:02:25]} 13. f3 {[%clk 0:02:16]} 13... Be6 {[%clk 0:02:22]} 14. Qe2
{[%clk 0:02:09.3]} 14... Rfd8 {[%clk 0:02:14.5]} 15. Nhf5 {[%clk 0:02:08.2]}
15... Bf8 {[%clk 0:02:12.6]} 16. Be3 {[%clk 0:01:40.5]} 16... a5 {[%clk
0:02:10.4]} 17. b3 {[%clk 0:01:34.5]} 17... h5 {[%clk 0:02:02.5]} 18. Bg5 {[%clk
0:01:30.9]} 18... Bxc4 {[%clk 0:01:38.5]} 19. Qxc4 {[%clk 0:01:29.3]} 19... Ncd7
{[%clk 0:01:39.1]} 20. Red1 {[%clk 0:00:58.2]} 20... g6 {[%clk 0:01:22.4]} 21.
Nh6+ {[%clk 0:00:44.9]} 21... Bxh6 {[%clk 0:01:22.5]} 22. Bxh6 {[%clk
0:00:45.8]} 22... Qb6+ {[%clk 0:01:18.8]} 23. Kh1 {[%clk 0:00:44.9]} 23... Qc5
{[%clk 0:01:17.1]} 24. Qe2 {[%clk 0:00:40]} 24... Nf8 {[%clk 0:01:04.9]} 25. Bg5
{[%clk 0:00:36.6]} 25... Kg7 {[%clk 0:01:03.1]} 26. Nf1 {[%clk 0:00:33.4]} 26...
Ne6 {[%clk 0:01:00.8]} 27. Bh4 {[%clk 0:00:30.3]} 27... Nd4 {[%clk 0:00:56.4]}
28. Qf2 {[%clk 0:00:28.2]} 28... Qxc2 {[%clk 0:00:52.5]} 29. Bxf6+ {[%clk
0:00:22.6]} 29... Kxf6 {[%clk 0:00:52.2]} 30. Qh4+ {[%clk 0:00:23.5]} 30... Kg7
{[%clk 0:00:47.4]} 31. Qe7 {[%clk 0:00:22.5]} 31... Re8 {[%clk 0:00:40]} 32.
Qxb7 {[%clk 0:00:21.8]} 32... Qxb3 {[%clk 0:00:38.1]} 33. Rab1 {[%clk
0:00:20.6]} 33... Qxb7 {[%clk 0:00:26.3]} 34. Rxb7 {[%clk 0:00:21.5]} 34... Reb8
{[%clk 0:00:26]} 35. Rdb1 {[%clk 0:00:21.6]} 35... Rxb7 {[%clk 0:00:26.6]} 36.
Rxb7 {[%clk 0:00:22.4]} 36... Rd8 {[%clk 0:00:13.4]} 37. Ne3 {[%clk 0:00:22.8]}
37... Nc2 {[%clk 0:00:10.3]} 38. Nf1 {[%clk 0:00:11]} 38... Rd1 {[%clk
0:00:10.1]} 39. Kg1 {[%clk 0:00:10.9]} 39... Ne3 {[%clk 0:00:10.5]} 40. Kf2
{[%clk 0:00:11.6]} 40... Nxf1 {[%clk 0:00:11]} 41. Ra7 {[%clk 0:00:11.7]} 41...
Ra1 {[%clk 0:00:09.4]} 42. Rxa5 {[%clk 0:00:12.3]} 42... Nd2 {[%clk 0:00:08.7]}
43. Rxe5 {[%clk 0:00:12.7]} 43... Rxa4 {[%clk 0:00:07.7]} 44. Re7 {[%clk
0:00:13.2]} 44... Nc4 {[%clk 0:00:06.1]} 45. Rc7 {[%clk 0:00:12.9]} 45... Ra2+
{[%clk 0:00:06.8]} 46. Kg3 {[%clk 0:00:13.1]} 46... Ne3 {[%clk 0:00:05.4]} 47.
Rxc6 {[%clk 0:00:13.7]} 47... g5 {[%clk 0:00:05.3]} 48. h4 {[%clk 0:00:12.8]}
48... Rxg2+ {[%clk 0:00:04.5]} 49. Kh3 {[%clk 0:00:13.3]} 49... g4+ {[%clk
0:00:05.4]} 50. fxg4 {[%clk 0:00:12.6]} 50... hxg4# {[%clk 0:00:06.3]} 0-1

[Event "Late-Titled-Tuesday-Blitz-April-23-2024"]
[Site "Chess.com"]
[Date "2024.04.23"]
[Round "1"]
[White "Jooonaaas1996"]
[Black "enriquetejedor"]
[Result "0-1"]
[WhiteElo "2416"]
[BlackElo "2728"]
[TimeControl "180+1"]
[EndTime "14:07:47 PDT"]
[Termination "enriquetejedor won by resignation"]

1. e4 {[%clk 0:02:59.1]} 1... d6 {[%clk 0:02:48.1]} 2. d4 {[%clk 0:02:56.4]}
2... e5 {[%clk 0:02:42.3]} 3. dxe5 {[%clk 0:02:53.7]} 3... dxe5 {[%clk
0:02:40.2]} 4. Qxd8+ {[%clk 0:02:54.6]} 4... Kxd8 {[%clk 0:02:40.5]} 5. Bc4
{[%clk 0:02:54.7]} 5... Be6 {[%clk 0:02:40.9]} 6. Bxe6 {[%clk 0:02:54.2]} 6...
fxe6 {[%clk 0:02:41.8]} 7. Be3 {[%clk 0:02:53.3]} 7... Nf6 {[%clk 0:02:35.7]} 8.
f3 {[%clk 0:02:52.9]} 8... Nbd7 {[%clk 0:02:34.5]} 9. Nd2 {[%clk 0:02:51.6]}
9... Bd6 {[%clk 0:02:35.4]} 10. Ne2 {[%clk 0:02:45.3]} 10... Ke7 {[%clk
0:02:34.2]} 11. a4 {[%clk 0:02:42.5]} 11... a5 {[%clk 0:02:25.7]} 12. Nc4 {[%clk
0:02:40.7]} 12... h6 {[%clk 0:02:12.6]} 13. h4 {[%clk 0:02:37.5]} 13... Ra6
{[%clk 0:02:05.1]} 14. Nc1 {[%clk 0:02:26.3]} 14... Rha8 {[%clk 0:01:59.6]} 15.
Nd3 {[%clk 0:02:20.3]} 15... Rc6 {[%clk 0:01:57.8]} 16. b3 {[%clk 0:02:15.9]}
16... b6 {[%clk 0:01:53.1]} 17. Ke2 {[%clk 0:01:55]} 17... Rf8 {[%clk
0:01:51.2]} 18. g4 {[%clk 0:01:49.2]} 18... Rf7 {[%clk 0:01:50]} 19. Rag1 {[%clk
0:01:44.3]} 19... h5 {[%clk 0:01:44.6]} 20. g5 {[%clk 0:01:36.8]} 20... Ng8
{[%clk 0:01:41.8]} 21. g6 {[%clk 0:01:16.1]} 21... Rf8 {[%clk 0:01:39.6]} 22.
Bg5+ {[%clk 0:01:10.2]} 22... Ke8 {[%clk 0:01:33.6]} 23. Be3 {[%clk 0:01:09.7]}
23... Ne7 {[%clk 0:01:29.2]} 24. Rg2 {[%clk 0:01:03.5]} 24... Rf6 {[%clk
0:01:17.2]} 25. Rhg1 {[%clk 0:01:02.3]} 25... Rxc4 {[%clk 0:01:16.6]} 26. bxc4
{[%clk 0:01:01.1]} 26... Nc6 {[%clk 0:01:17.5]} 27. Rg5 {[%clk 0:00:56.9]} 27...
Nf8 {[%clk 0:01:12.3]} 28. Rxh5 {[%clk 0:00:50.9]} 28... Nxg6 {[%clk 0:01:08.8]}
29. Rhg5 {[%clk 0:00:42.6]} 29... Nxh4 {[%clk 0:01:06.8]} 30. Rxg7 {[%clk
0:00:18.7]} 30... Nxf3 {[%clk 0:01:04.2]} 31. Rg8+ {[%clk 0:00:17.9]} 31... Kd7
{[%clk 0:01:01.3]} 32. R1g7+ {[%clk 0:00:17.1]} 32... Ne7 {[%clk 0:01:00.8]} 33.
c5 {[%clk 0:00:17]} 33... bxc5 {[%clk 0:00:59.9]} 34. Nxc5+ {[%clk 0:00:17.3]}
34... Kc6 {[%clk 0:00:59.8]} 35. Nd3 {[%clk 0:00:16.7]} 35... Nxg8 {[%clk
0:00:58.7]} 36. Rxg8 {[%clk 0:00:16.5]} 36... Nh2 {[%clk 0:00:56.5]} 37. Rg2
{[%clk 0:00:15.9]} 37... Nf1 {[%clk 0:00:53.4]} 38. Bf2 {[%clk 0:00:14.8]} 38...
Rf8 {[%clk 0:00:18]} 39. Kxf1 {[%clk 0:00:14.2]} 39... Rb8 {[%clk 0:00:18.9]}
40. Ke2 {[%clk 0:00:14.1]} 40... Rb1 {[%clk 0:00:19.4]} 41. Kd2 {[%clk
0:00:14.2]} 41... Ra1 {[%clk 0:00:19.6]} 42. Rg1 {[%clk 0:00:14.1]} 42... Rxa4
{[%clk 0:00:19.5]} 43. Re1 {[%clk 0:00:14.2]} 43... Rc4 {[%clk 0:00:19.3]} 44.
c3 {[%clk 0:00:11.6]} 44... Ra4 {[%clk 0:00:18.3]} 45. Rb1 {[%clk 0:00:10.3]}
45... Ra2+ {[%clk 0:00:18.3]} 46. Rb2 {[%clk 0:00:10.4]} 46... Ra1 {[%clk
0:00:17.6]} 47. Bg3 {[%clk 0:00:10.5]} 47... Rh1 {[%clk 0:00:16.4]} 48. Bxe5
{[%clk 0:00:10.1]} 48... Rg1 {[%clk 0:00:12]} 49. Bxd6 {[%clk 0:00:09]} 49...
cxd6 {[%clk 0:00:12.9]} 50. Ra2 {[%clk 0:00:08.9]} 50... Rg2+ {[%clk 0:00:11.4]}
51. Ke3 {[%clk 0:00:09.2]} 51... Rxa2 {[%clk 0:00:10.2]} 0-1

[Event "Late-Titled-Tuesday-Blitz-April-23-2024"]
[Site "Chess.com"]
[Date "2024.04.23"]
[Round "1"]
[White "Skatchkov_V"]
[Black "egnfanclub"]
[Result "1-0"]
[WhiteElo "2664"]
[BlackElo "2359"]
[TimeControl "180+1"]
[EndTime "14:07:47 PDT"]
[Termination "Skatchkov_V won by resignation"]

1. d4 {[%clk 0:03:00.9]} 1... d5 {[%clk 0:02:59.3]} 2. c4 {[%clk 0:03:00.7]}
2... c6 {[%clk 0:02:58.9]} 3. Nf3 {[%clk 0:02:59.7]} 3... Nf6 {[%clk 0:02:58.1]}
4. Nc3 {[%clk 0:02:59.9]} 4... e6 {[%clk 0:02:57.2]} 5. g3 {[%clk 0:03:00.1]}
5... Nbd7 {[%clk 0:02:53.3]} 6. Bg2 {[%clk 0:03:00.5]} 6... dxc4 {[%clk
0:02:53.1]} 7. O-O {[%clk 0:03:00]} 7... Bd6 {[%clk 0:02:42.3]} 8. Nd2 {[%clk
0:02:50.2]} 8... e5 {[%clk 0:02:37.3]} 9. Nxc4 {[%clk 0:02:50]} 9... Bc7 {[%clk
0:02:37.9]} 10. dxe5 {[%clk 0:02:37.3]} 10... Nxe5 {[%clk 0:02:38]} 11. Qxd8+
{[%clk 0:02:37.3]} 11... Kxd8 {[%clk 0:02:38.9]} 12. Rd1+ {[%clk 0:02:37.7]}
12... Ke7 {[%clk 0:02:35.7]} 13. Bf4 {[%clk 0:02:37.5]} 13... Nfd7 {[%clk
0:02:32.3]} 14. Rxd7+ {[%clk 0:02:35.2]} 14... Bxd7 {[%clk 0:02:26.1]} 15. Nxe5
{[%clk 0:02:35.3]} 15... Bxe5 {[%clk 0:02:25.1]} 16. Bxe5 {[%clk 0:02:35.7]}
16... f6 {[%clk 0:02:25.7]} 17. Bf4 {[%clk 0:02:30.6]} 17... Be6 {[%clk
0:02:25.6]} 18. Ne4 {[%clk 0:02:29.3]} 18... Rad8 {[%clk 0:02:19.6]} 19. Nc5
{[%clk 0:02:27.7]} 19... Bc8 {[%clk 0:02:19.4]} 20. h4 {[%clk 0:02:22.3]} 20...
Kf7 {[%clk 0:02:17.3]} 21. Bc7 {[%clk 0:02:19.2]} 21... Rd2 {[%clk 0:02:13.8]}
22. Ne4 {[%clk 0:01:59.6]} 22... Rxb2 {[%clk 0:01:59.8]} 23. a4 {[%clk
0:01:53.4]} 23... Rxe2 {[%clk 0:01:44.6]} 24. a5 {[%clk 0:01:52.7]} 24... Kg6
{[%clk 0:01:39.8]} 25. h5+ {[%clk 0:01:50.9]} 25... Kf7 {[%clk 0:01:34.7]} 26.
Rd1 {[%clk 0:01:50.7]} 26... Bg4 {[%clk 0:01:15.1]} 27. Nd6+ {[%clk 0:01:44.6]}
27... Ke6 {[%clk 0:01:14.9]} 28. Nxb7 {[%clk 0:01:41]} 28... Bxh5 {[%clk
0:01:10]} 29. Bf1 {[%clk 0:01:12.2]} 29... Rc2 {[%clk 0:01:00.8]} 30. Rd6+
{[%clk 0:01:10]} 30... Ke7 {[%clk 0:00:56.2]} 31. Bd8+ {[%clk 0:01:03.5]} 31...
Kf7 {[%clk 0:00:53.7]} 32. Rd7+ {[%clk 0:01:03.7]} 32... Ke6 {[%clk 0:00:50.9]}
33. Re7+ {[%clk 0:00:47.6]} 33... Kd5 {[%clk 0:00:46.3]} 34. Rd7+ {[%clk
0:00:46.5]} 34... Ke6 {[%clk 0:00:46.1]} 35. Rd6+ {[%clk 0:00:43.3]} 35... Kf7
{[%clk 0:00:39.8]} 36. Bd3 {[%clk 0:00:43.5]} 36... Rc1+ {[%clk 0:00:29.7]} 37.
Kg2 {[%clk 0:00:43.7]} 37... Rd1 {[%clk 0:00:19.3]} 38. Rd7+ {[%clk 0:00:31.7]}
38... Ke8 {[%clk 0:00:17.2]} 39. Re7+ {[%clk 0:00:20.2]} 39... Kf8 {[%clk
0:00:16.8]} 40. Re3 {[%clk 0:00:20.8]} 40... Bg6 {[%clk 0:00:14.2]} 41. Be2
{[%clk 0:00:16.5]} 41... Rd7 {[%clk 0:00:12.7]} 42. a6 {[%clk 0:00:17.1]} 42...
Bf7 {[%clk 0:00:11.3]} 43. Ba5 {[%clk 0:00:15.8]} 43... Bd5+ {[%clk 0:00:11.5]}
44. Kh2 {[%clk 0:00:16.4]} 44... Kf7 {[%clk 0:00:12]} 45. Bb4 {[%clk 0:00:15.6]}
45... Re8 {[%clk 0:00:12.2]} 46. Nd6+ {[%clk 0:00:14.6]} 46... Rxd6 {[%clk
0:00:11.4]} 47. Rxe8 {[%clk 0:00:13.4]} 47... Kxe8 {[%clk 0:00:11.2]} 48. Bxd6
{[%clk 0:00:13.9]} 48... Kd7 {[%clk 0:00:11.2]} 49. Bc5 {[%clk 0:00:14.3]} 49...
Bc4 {[%clk 0:00:09.6]} 50. Bxc4 {[%clk 0:00:13.3]} 1-0

[Event "Late-Titled-Tuesday-Blitz-April-23-2024"]
[Site "Chess.com"]
[Date "2024.04.23"]
[Round "1"]
[White "Nimrod_Veinberg"]
[Black "super_emi_26"]
[Result "1-0"]
[WhiteElo "2817"]
[BlackElo "2414"]
[TimeControl "180+1"]
[EndTime "14:07:48 PDT"]
[Termination "Nimrod_Veinberg won by resignation"]

1. e4 {[%clk 0:03:00.9]} 1... e5 {[%clk 0:02:55.9]} 2. Nf3 {[%clk 0:03:00.4]}
2... Nc6 {[%clk 0:02:55.9]} 3. Bb5 {[%clk 0:03:00.9]} 3... Nf6 {[%clk
0:02:52.7]} 4. O-O {[%clk 0:03:00]} 4... Nxe4 {[%clk 0:02:52.5]} 5. Re1 {[%clk
0:02:59.5]} 5... Nd6 {[%clk 0:02:52.7]} 6. Ba4 {[%clk 0:02:57.3]} 6... Be7
{[%clk 0:02:52.2]} 7. d4 {[%clk 0:02:57]} 7... exd4 {[%clk 0:02:46.7]} 8. c3
{[%clk 0:02:32]} 8... d3 {[%clk 0:01:53.3]} 9. Qxd3 {[%clk 0:02:26.7]} 9... O-O
{[%clk 0:01:52]} 10. Bc2 {[%clk 0:02:25.3]} 10... g6 {[%clk 0:01:51.5]} 11. Bh6
{[%clk 0:02:24.6]} 11... Re8 {[%clk 0:01:50.9]} 12. Nbd2 {[%clk 0:02:25.2]}
12... Nf5 {[%clk 0:01:50.1]} 13. Bf4 {[%clk 0:02:21.3]} 13... d5 {[%clk
0:01:45.8]} 14. Nf1 {[%clk 0:02:18.6]} 14... Ng7 {[%clk 0:01:43.7]} 15. Ng3
{[%clk 0:02:16.7]} 15... Bg4 {[%clk 0:01:39.9]} 16. h3 {[%clk 0:02:13.7]} 16...
Bxf3 {[%clk 0:01:37.8]} 17. Qxf3 {[%clk 0:02:14.6]} 17... Bd6 {[%clk 0:01:35.4]}
18. Bh6 {[%clk 0:02:07.5]} 18... Rxe1+ {[%clk 0:01:32]} 19. Rxe1 {[%clk
0:02:06.1]} 19... Bf8 {[%clk 0:01:30.3]} 20. Bb3 {[%clk 0:02:00.8]} 20... Ne7
{[%clk 0:01:12.3]} 21. Bg5 {[%clk 0:02:00.3]} 21... Qd7 {[%clk 0:01:11.4]} 22.
Bxe7 {[%clk 0:01:57.5]} 22... Bxe7 {[%clk 0:01:12.3]} 23. Bxd5 {[%clk
0:01:57.6]} 23... Bd6 {[%clk 0:01:12.8]} 24. Bxb7 {[%clk 0:01:56.1]} 24... Re8
{[%clk 0:01:12.4]} 25. Rd1 {[%clk 0:01:52.5]} 25... Qe7 {[%clk 0:00:51]} 26. Ne4
{[%clk 0:01:45.6]} 26... Nf5 {[%clk 0:00:45.4]} 27. Bc6 {[%clk 0:01:38.8]} 27...
Rb8 {[%clk 0:00:43.5]} 28. Nxd6 {[%clk 0:01:36.8]} 28... Nxd6 {[%clk 0:00:43.5]}
29. b3 {[%clk 0:01:36.4]} 29... Kg7 {[%clk 0:00:41.2]} 30. c4 {[%clk 0:01:34.6]}
30... Rd8 {[%clk 0:00:40.6]} 31. g3 {[%clk 0:01:33.7]} 31... Nf5 {[%clk
0:00:40.7]} 32. Qc3+ {[%clk 0:01:30.8]} 32... Kg8 {[%clk 0:00:40.5]} 33. Rxd8+
{[%clk 0:01:27]} 33... Qxd8 {[%clk 0:00:41.4]} 34. Bd5 {[%clk 0:01:27.3]} 34...
Qd6 {[%clk 0:00:36.1]} 35. Qf3 {[%clk 0:01:22]} 35... Kg7 {[%clk 0:00:30.5]} 36.
g4 {[%clk 0:01:20.8]} 36... Nh6 {[%clk 0:00:30.9]} 37. Kg2 {[%clk 0:01:16]}
37... a5 {[%clk 0:00:30.2]} 38. Qc3+ {[%clk 0:01:11.5]} 38... Kf8 {[%clk
0:00:28.3]} 39. Qxa5 {[%clk 0:01:10.8]} 39... Ng8 {[%clk 0:00:28.6]} 40. Qa8+
{[%clk 0:01:08.2]} 40... Kg7 {[%clk 0:00:28.5]} 41. Qe8 {[%clk 0:01:08.7]} 41...
Qf6 {[%clk 0:00:26.5]} 42. Qe3 {[%clk 0:01:01]} 42... h6 {[%clk 0:00:24.6]} 43.
a4 {[%clk 0:01:00.1]} 43... Ne7 {[%clk 0:00:23.9]} 44. Bf3 {[%clk 0:01:00.5]}
44... g5 {[%clk 0:00:22.4]} 45. Be4 {[%clk 0:00:58]} 45... Qe5 {[%clk 0:00:21]}
46. b4 {[%clk 0:00:54.2]} 46... h5 {[%clk 0:00:18.3]} 47. a5 {[%clk 0:00:52.9]}
47... hxg4 {[%clk 0:00:17.7]} 48. hxg4 {[%clk 0:00:53.8]} 48... f6 {[%clk
0:00:17.8]} 49. a6 {[%clk 0:00:53.4]} 49... Nc8 {[%clk 0:00:16]} 50. Bb7 {[%clk
0:00:46.2]} 50... Qxe3 {[%clk 0:00:16.1]} 51. fxe3 {[%clk 0:00:46.3]} 51... Na7
{[%clk 0:00:16.8]} 52. Kf3 {[%clk 0:00:42.9]} 52... Kf7 {[%clk 0:00:17.2]} 53.
Ke4 {[%clk 0:00:42.3]} 53... Ke6 {[%clk 0:00:18.1]} 54. Bd5+ {[%clk 0:00:42]}
54... Kd6 {[%clk 0:00:18.3]} 55. c5+ {[%clk 0:00:42]} 55... Ke7 {[%clk
0:00:18.5]} 56. Kf5 {[%clk 0:00:41.2]} 56... c6 {[%clk 0:00:18.9]} 57. Bxc6
{[%clk 0:00:37.8]} 57... Nxc6 {[%clk 0:00:19.1]} 58. b5 {[%clk 0:00:38.3]} 58...
Nb4 {[%clk 0:00:02.5]} 59. a7 {[%clk 0:00:37.6]} 59... Nd5 {[%clk 0:00:02.1]}
60. a8=Q {[%clk 0:00:36.5]} 60... Nxe3+ {[%clk 0:00:02.7]} 61. Kg6 {[%clk
0:00:36.6]} 1-0